bitfinex-derivatives/quotes_ETHF0:USTF0_20250803
["timestamp","ask_amount","ask_price","bid_price","bid_amount"]
[1754181666329,0.59228,3377.5,3377.3,0.9824]
[1754181666538,0.59228,3377.5,3375.2,1.4817]
[1754181666539,0.59238,3376.9,3376.7,3.2078]
[1754181666742,0.59242,3376.7,3376.1,5.6636]
[1754181666934,2.9543,3376.7,3376.6,3.2078]
[1754181667135,25.323,3376.9,3376.6,0.9824]
[1754181667439,25.9124,3376.9,3376.6,0.9824]
[1754181667742,25.9124,3376.9,3376.5,3.2078]
[1754181667743,4.53393,3376.6,3376.5,3.2078]
[1754181667945,4.53393,3376.6,3376.1,3.2078]
[1754181667946,1.512,3376.4,3376.1,3.2078]
[1754181668132,6.1621,3377.7,3376.3,0.9824]
[1754181668343,6.1621,3377.7,3377.1,3.2078]
[1754181668344,2.9543,3377.3,3377.1,3.2078]
[1754181669040,3.2078,3377.7,3377.2,3.04813]
[1754181669238,25.382,3378.6,3377.7,0.59224]
[1754181669442,0.84894571,3378.5,3378.0,3.2078]
[1754181669642,2.36094571,3378.4,3378.0,4.1902]
[1754181669840,0.84894571,3378.3,3378.0,4.1902]
[1754181670043,0.84894571,3378.3,3378.0,3.2078]
[1754181670238,0.84894571,3378.2,3378.1,2.5854]
[1754181670549,0.84977311,3378.3,3378.1,0.9824]
[1754181670747,0.84977311,3378.2,3378.1,0.9824]
[1754181671743,2.9543,3378.1,3378.0,3.2078]
[1754181671940,2.9543,3378.0,3377.2,3.2078]
[1754181672146,3.54661,3377.4,3377.2,3.2078]
[1754181672343,2.9543,3377.3,3377.2,3.2078]
[1754181672546,0.59233,3377.2,3376.7,2.4558]
[1754181672742,0.59233,3377.2,3377.0,3.2078]
[1754181672743,2.9543,3377.1,3377.0,3.2078]
[1754181673045,0.59233,3377.2,3377.0,4.1902]
[1754181673849,0.85067417,3377.1,3376.7,0.9824]
[1754181674151,2.10436,3377.0,3376.7,0.9824]
[1754181674348,0.5924,3376.8,3376.6,3.2078]
[1754181674536,2.1044,3376.8,3376.6,3.2078]
[1754181675453,0.59237,3377.0,3376.6,3.2078]
[1754181675650,0.59237,3377.0,3376.7,4.0588]
[1754181675849,0.59228,3377.5,3376.8,0.5924]
[1754181676153,0.59228,3377.5,3377.4,7.2666]
[1754181676346,0.59226,3377.6,3377.5,2.4558]
[1754181676654,1.44285385,3377.6,3377.5,2.4558]
[1754181676851,1.44285385,3377.6,3377.5,0.9824]
[1754181678051,0.59226,3377.6,3377.5,0.9824]
[1754181678253,2.9543,3377.5,3377.0,1.4734]
[1754181678449,0.59234,3377.2,3377.1,0.9824]
[1754181678649,0.59234,3377.2,3377.1,4.0588]
[1754181679152,0.59232,3377.3,3377.1,3.0764]
[1754181679350,0.59238,3377.0,3376.7,3.2078]
[1754181679656,0.59238,3377.0,3376.8,0.9824]
[1754181679950,0.59234,3377.2,3376.9,0.9824]
[1754181680257,2.9543,3377.8,3377.1,3.2078]
[1754181680451,0.59228,3377.5,3377.2,1.603]
[1754181680656,0.59228,3377.5,3377.4,0.9824]
[1754181681264,0.59228,3377.5,3377.4,2.4558]
[1754181681463,1.59202,3379.0,3377.3,4.0588]
[1754181681659,0.85154367,3378.9,3378.7,4.0588]
[1754181681860,0.85154367,3378.8,3378.6,3.2078]
[1754181682066,0.85154367,3378.7,3378.6,4.1902]
[1754181682258,1.0,3379.0,3378.9,0.59203]
[1754181682458,1.0,3379.0,3378.6,3.2078]
[1754181682459,3.2078,3380.1,3378.8,1.48013]
[1754181682661,3.2078,3380.1,3379.7,0.59189]
[1754181682863,5.30804633,3380.7,3379.9,0.59184]
[1754181683064,3.2078,3380.7,3380.2,1.603]
[1754181683369,3.2078,3380.7,3380.1,3.2078]
[1754181683563,3.2078,3380.7,3380.4,3.0042]
[1754181683764,3.79952,3380.7,3380.4,3.0042]
[1754181683966,0.59173,3380.6,3380.1,3.2078]
[1754181684268,3.9415,3380.6,3379.7,3.2078]
[1754181684566,3.2078,3380.7,3379.7,3.2078]
[1754181684763,3.9415,3380.5,3379.7,3.2078]
[1754181685364,1.512,3380.5,3379.8,1.57427]
[1754181685666,2.10377,3380.5,3380.1,3.2078]
[1754181685868,1.512,3380.5,3380.1,7.1944]
[1754181686265,4.195,3381.2,3380.4,3.9866]
[1754181686470,3.2078,3381.7,3381.1,3.2078]
[1754181687468,3.2078,3381.7,3381.5,3.0042]
[1754181687673,3.2078,3381.7,3381.3,3.9866]
[1754181687872,3.2078,3381.7,3381.1,3.2078]
[1754181688179,0.59152,3381.9,3381.0,0.59166]
[1754181688180,0.59152,3381.9,3381.6,3.8757]
[1754181688567,0.59135,3382.9,3381.9,2.92019]
[1754181688873,0.973,3383.6,3382.8,3.2078]
[1754181689174,0.973,3383.0,3382.4,3.2078]
[1754181689366,0.5914,3382.5,3382.4,3.2078]
[1754181689764,3.0146,3383.2,3382.4,3.2078]
[1754181689765,3.9876,3382.7,3382.4,3.2078]
[1754181690073,0.59152,3381.8,3381.7,2.3287]
[1754181690370,0.59147,3382.2,3381.9,2.3287]
[1754181690672,1.56447,3382.2,3381.9,2.3287]
[1754181690869,0.973,3382.2,3381.9,2.3287]
[1754181691169,0.59143,3382.4,3382.0,1.525]
[1754181691372,1.56443,3382.4,3382.2,3.2078]
[1754181691575,1.56445,3382.2,3381.6,3.2078]
[1754181691765,0.973,3382.2,3381.6,3.2078]
[1754181691966,1.56446,3382.2,3381.8,2.3287]
[1754181692270,0.973,3382.0,3381.3,3.2078]
[1754181692571,3.21719,3381.4,3381.3,3.2078]
[1754181693069,0.59149,3382.0,3381.4,1.525]
[1754181693269,0.973,3382.1,3381.3,3.2078]
[1754181693573,1.6526,3382.0,3381.3,3.2078]
[1754181693771,0.59159,3381.4,3381.3,3.2078]
[1754181693965,0.59159,3381.4,3380.5,0.9555]
[1754181693966,0.59166,3381.0,3380.9,3.2078]
[1754181694161,2.92666,3381.0,3380.9,3.2078]
[1754181694464,1.56475,3380.5,3380.3,3.2078]
[1754181694670,0.59182,3380.1,3380.0,2.3287]
[1754181695066,0.59182,3380.1,3379.9,3.2078]
[1754181695067,0.973,3380.1,3379.5,5.5365]
[1754181695265,0.59191,3379.6,3379.5,2.3287]
[1754181695470,1.47938,3380.6,3379.5,5.5365]
[1754181695471,0.5919,3379.7,3379.5,5.5365]
[1754181695869,0.5919,3379.7,3379.5,3.2078]
[1754181696068,4.10496,3380.6,3379.6,2.3287]
[1754181696271,1.56489,3379.7,3379.5,3.2078]
[1754181696470,0.973,3379.6,3379.5,3.2078]
[1754181697274,0.59186,3379.9,3379.6,2.3287]
[1754181697476,0.59186,3379.9,3379.7,2.3287]
[1754181698175,0.59185,3380.0,3379.7,2.3287]
[1754181698370,0.59185,3380.0,3379.8,2.3287]
[1754181698680,47.77253,3380.7,3380.1,2.3287]
[1754181698979,47.77253,3380.7,3380.0,0.9555]
[1754181698980,43.20273,3380.7,3380.5,2.3287]
[1754181699676,43.20273,3380.7,3379.6,2.3287]
[1754181699677,0.59184,3380.0,3379.6,2.3287]
[1754181699881,43.20273,3380.7,3379.9,2.3287]
[1754181700077,43.20273,3380.7,3380.4,2.3287]
[1754181700378,0.59181,3380.2,3380.0,2.3287]
[1754181700579,0.973,3380.2,3380.0,0.8037]
[1754181701079,0.59177,3380.4,3380.1,1.525]
[1754181701281,42.611,3380.7,3380.2,5.5365]
[1754181701477,0.59173,3380.6,3380.3,2.3287]
[1754181701678,0.59173,3380.6,3380.4,2.3287]
[1754181701977,0.59178,3380.4,3380.2,3.2078]
[1754181702182,0.59178,3380.4,3380.2,5.5365]
[1754181702382,0.59178,3380.4,3380.2,2.3287]
[1754181702578,0.59178,3380.4,3380.2,5.5365]
[1754181702782,0.59178,3380.4,3380.2,2.3287]
[1754181702983,0.59178,3380.4,3380.3,3.2078]
[1754181703181,3.0146,3381.1,3380.3,3.2078]
[1754181703379,27.8176,3381.1,3380.5,2.3287]
[1754181703781,3.2078,3381.2,3380.6,1.525]
[1754181703978,1.57123905,3382.4,3381.6,2.4805]
[1754181703979,0.59149,3382.1,3381.6,2.4805]
[1754181704178,0.973,3382.2,3382.0,3.2078]
[1754181704878,0.59143,3382.4,3382.0,3.2078]
[1754181705175,1.362,3382.3,3382.0,4.7328]
[1754181705381,2.335,3382.3,3382.0,4.7328]
[1754181705687,2.92645,3382.3,3382.0,4.7328]
[1754181706274,0.59145,3382.2,3382.0,4.7328]
[1754181706575,0.973,3381.9,3381.6,1.525]
[1754181706781,0.973,3381.9,3381.8,3.2078]
[1754181707185,3.0146,3383.1,3382.0,1.525]
[1754181707382,1.0474766,3383.6,3383.0,3.2078]
[1754181707383,3.0146,3383.6,3383.0,3.2078]
[1754181707684,3.0146,3383.6,3383.0,1.525]
[1754181707886,0.59119,3383.7,3383.4,3.2078]
[1754181708087,3.0146,3383.8,3382.9,3.2078]
[1754181708296,0.83585,3383.7,3382.9,3.2078]
[1754181708491,0.59123,3383.5,3383.3,3.2078]
[1754181708785,70.3626,3383.9,3383.3,3.2078]
[1754181709085,1.80883474,3383.8,3383.3,3.2078]
[1754181709384,0.83583474,3383.7,3383.3,3.2078]
[1754181709684,0.59119,3383.7,3383.4,1.525]
[1754181709989,42.613,3383.9,3383.3,3.2078]
[1754181710191,0.8363383,3383.8,3383.4,1.525]
[1754181710483,0.8363383,3383.7,3383.3,3.2078]
[1754181710688,42.613,3383.9,3383.6,1.525]
[1754181710689,43.20417,3383.9,3383.6,1.525]
[1754181710888,0.59119,3383.7,3383.6,1.525]
[1754181711090,1.56414,3384.1,3383.5,4.7328]
[1754181711383,0.83776285,3384.0,3383.5,3.2078]
[1754181711584,4.0620766,3384.5,3383.9,3.2078]
[1754181711785,0.83783696,3384.4,3383.9,3.2078]
[1754181711990,0.83783696,3384.3,3384.0,2.4805]
[1754181712178,0.83783696,3384.2,3384.1,1.525]
[1754181712985,4.57872,3384.1,3383.9,3.2078]
[1754181713193,0.973,3384.4,3383.9,3.2078]
[1754181713384,0.83808313,3384.3,3383.8,0.59116]
[1754181713582,0.83808313,3384.3,3383.1,1.47821]
[1754181713583,1.0474766,3384.7,3384.4,1.525]
[1754181713784,0.83814195,3384.6,3384.4,2.4805]
[1754181714085,0.83814596,3384.5,3384.2,3.2078]
[1754181714290,0.83814596,3384.4,3384.3,0.9555]
[1754181714479,0.83791812,3384.4,3384.3,0.9555]
[1754181714681,0.59098,3384.9,3384.3,0.9555]
[1754181714878,1.57123905,3385.4,3384.8,3.2078]
[1754181715082,1.56863013,3385.8,3385.3,3.2078]
[1754181715289,1.56863013,3385.8,3385.7,3.2078]
[1754181715792,1.56863013,3386.0,3385.7,3.2078]
[1754181715984,0.973,3386.0,3385.7,3.2078]
[1754181716693,1.6526,3386.3,3385.7,3.2078]
[1754181716890,0.5908,3386.0,3385.3,3.2078]
[1754181717096,0.973,3386.6,3385.9,3.2078]
[1754181717388,0.973,3386.4,3386.3,3.2078]
[1754181717985,2.5971,3386.4,3386.3,3.2078]
[1754181719190,4.0175,3386.4,3386.3,3.2078]
[1754181719394,0.9667,3386.4,3386.3,3.2078]
[1754181720188,0.2390805,3387.4,3386.3,3.79854]
[1754181720493,24.613,3387.4,3386.0,3.2078]
[1754181720787,0.9667,3386.6,3386.5,3.2078]
[1754181721490,0.9667,3386.9,3386.5,3.2078]
[1754181721686,0.59056,3387.3,3386.6,0.59068]
[1754181721886,3.18136,3387.3,3387.1,3.2078]
[1754181722193,4.0112,3387.1,3387.0,3.2078]
[1754181722386,0.9667,3387.7,3387.0,3.2078]
[1754181722693,4.2078,3388.0,3387.1,3.2078]
[1754181722894,0.9667,3387.2,3387.1,3.2078]
[1754181723084,2.97758,3387.8,3387.1,3.7984]
[1754181723285,2.3871,3387.8,3387.3,0.59056]
[1754181723488,1.0,3388.0,3387.8,0.59046]
[1754181724400,1.0,3388.0,3387.7,3.2078]
[1754181724693,1.0,3388.0,3387.7,3.79829]
[1754181725284,0.9667,3389.1,3388.2,0.59041]
[1754181725484,2.3871,3389.2,3388.6,3.2078]
[1754181725693,1.4204,3389.0,3388.4,0.59037]
[1754181725892,1.4204,3389.0,3388.9,3.2078]
[1754181726092,0.59024,3389.2,3388.9,3.2078]
[1754181726286,0.59035,3388.5,3388.3,3.2078]
[1754181726480,4.0112,3388.4,3388.3,3.2078]
[1754181726684,3.2078,3388.8,3387.8,3.2078]
[1754181726883,0.9667,3388.5,3388.2,3.2078]
[1754181727084,0.59035,3388.6,3388.2,3.2078]
[1754181727285,0.59045,3388.0,3387.8,3.2078]
[1754181727487,0.9667,3387.9,3387.8,3.2078]
[1754181727687,3.18115,3388.5,3387.8,3.2078]
[1754181727890,1.6241,3388.2,3387.9,3.2078]
[1754181728087,3.2078,3389.4,3387.9,3.2078]
[1754181728088,0.9667,3388.5,3387.9,3.2078]
[1754181728289,0.59051,3387.7,3387.4,3.2078]
[1754181728596,0.9667,3388.0,3387.4,3.2078]
[1754181728788,0.9667,3388.0,3387.9,3.2078]
[1754181729097,4.0112,3388.0,3387.9,3.2078]
[1754181729394,0.9667,3388.0,3387.9,3.2078]
[1754181729591,3.0445,3388.5,3387.9,3.2078]
[1754181729798,4.0112,3388.5,3388.4,3.2078]
[1754181730011,3.2078,3389.2,3388.1,3.2078]
[1754181730291,0.9667,3388.8,3388.5,3.2078]
[1754181730487,0.9667,3389.5,3388.5,3.2078]
[1754181730700,0.9667,3389.5,3389.4,3.2078]
[1754181731193,4.0112,3389.5,3389.4,3.2078]
[1754181731498,0.9667,3389.5,3389.4,3.2078]
[1754181732386,1.6241,3389.8,3389.4,3.2078]
[1754181732590,4.0112,3389.6,3389.4,3.2078]
[1754181732793,1.47673,3386.6,3384.4,1.4924]
[1754181732996,2.8703,3384.9,3383.6,2.3944]
[1754181733192,3.2078,3383.7,3383.6,2.3944]
[1754181733491,3.2078,3383.7,3383.6,3.9354]
[1754181734397,3.2078,3383.7,3383.1,2.443]
[1754181734599,0.59121,3383.6,3383.1,2.443]
[1754181734796,3.79907,3383.3,3383.2,3.9354]
[1754181735398,3.2078,3383.3,3383.2,3.9354]
[1754181736300,1.55778,3384.4,3383.6,1.4924]
[1754181736495,1.55778,3384.4,3382.1,42.538]
[1754181736496,0.5912,3383.7,3383.0,0.902]
[1754181736798,0.5913,3383.1,3382.7,2.3944]
[1754181736998,3.2078,3383.3,3383.0,1.4924]
[1754181737195,0.59134,3382.9,3382.2,3.9354]
[1754181737400,3.79914,3382.9,3382.2,3.9354]
[1754181737805,3.2078,3382.5,3382.2,3.9354]
[1754181737993,3.2078,3382.5,3381.0,42.546]
[1754181737994,4.42847,3382.2,3381.5,1.4924]
[1754181738189,3.2078,3382.0,3381.5,1.4924]
[1754181739102,3.2078,3382.0,3381.9,4.99987464]
[1754181739601,2.2129,3382.7,3381.9,4.99987464]
[1754181739602,3.2078,3382.4,3382.0,3.9354]
[1754181740003,3.79922,3382.4,3382.0,3.9354]
[1754181740200,3.2078,3382.4,3382.0,3.9354]
[1754181740701,3.2078,3382.4,3382.1,1.4924]
[1754181741099,0.59144,3382.3,3381.9,1.06447464]
[1754181741293,3.837,3382.2,3381.9,1.06447464]
[1754181741604,3.2078,3382.8,3382.4,3.9354]
[1754181741800,3.2078,3382.8,3382.6,3.9354]
[1754181741993,3.2078,3382.8,3382.7,3.9354]
[1754181742194,3.2078,3383.2,3382.7,2.443]
[1754181742395,3.2078,3383.2,3382.8,1.4924]
[1754181742597,6.38988,3383.2,3382.9,1.4924]
[1754181742806,5.7986,3383.2,3382.9,1.4924]
[1754181743002,3.2078,3383.2,3382.9,3.9354]
[1754181743300,3.2078,3383.2,3383.1,0.902]
[1754181743603,3.2078,3383.6,3382.6,3.9354]
[1754181743909,3.2078,3383.6,3383.4,3.9354]
[1754181744096,3.2078,3383.6,3383.5,3.9354]
[1754181744608,3.2078,3384.0,3383.9,0.59116]
[1754181744801,3.2078,3384.0,3383.9,4.52656]
[1754181744997,3.2078,3384.5,3383.9,3.9354]
[1754181745605,3.2078,3384.5,3384.2,0.59109]
[1754181745805,3.2078,3384.5,3384.4,0.59107]
[1754181746002,3.2078,3384.5,3383.7,1.47795]
[1754181746003,4.6282,3384.5,3383.9,0.59115]
[1754181746209,4.0112,3384.1,3383.7,0.59118]
[1754181746409,1.6241,3383.8,3383.7,0.59118]
[1754181746602,3.2078,3384.1,3384.0,0.59114]
[1754181746802,3.2078,3384.1,3383.9,0.59115]
[1754181746999,3.2078,3384.5,3384.3,0.59109]
[1754181747205,3.2078,3384.5,3384.1,0.59111]
[1754181747506,3.2078,3384.5,3384.4,0.59107]
[1754181748102,3.2078,3384.5,3384.4,4.47667]
[1754181748511,3.2078,3384.9,3384.4,3.8856]
[1754181748708,3.2078,3384.9,3384.1,3.2078]
[1754181748709,3.2078,3384.9,3384.3,1.4777]
[1754181748901,3.2078,3384.9,3384.8,4.4766]
[1754181749600,3.2078,3385.5,3385.4,0.59089]
[1754181749909,3.2078,3385.5,3384.5,1.5646]
[1754181749910,3.9901,3385.4,3384.5,1.5646]
[1754181750111,7.1979,3385.1,3385.0,0.59095]
[1754181750706,2.5609,3385.5,3385.4,0.59089]
[1754181750909,3.2078,3386.1,3386.0,0.59079]
[1754181751099,1.4292,3386.5,3386.4,0.59072]
[1754181751410,4.1137,3386.7,3386.6,4.47629]
[1754181751411,3.2078,3386.7,3386.6,4.47629]
[1754181752006,3.2078,3387.2,3386.6,3.8856]
[1754181752309,1.0,3388.0,3387.9,4.47606]
[1754181752805,5.5429,3389.0,3388.8,0.5903]
[1754181753106,5.5429,3389.0,3388.8,0.59029]
[1754181753409,5.5429,3389.0,3388.7,0.59032]
[1754181753601,2.3351,3389.0,3388.7,0.59032]
[1754181753802,3.9901,3389.3,3388.9,0.59027]
[1754181754106,2.92537,3389.0,3388.3,3.2078]
[1754181754308,2.92537,3389.0,3388.3,3.79819]
[1754181754696,2.92537,3389.0,3388.3,3.2078]
[1754181755208,0.59028,3388.9,3388.3,3.2078]
[1754181755409,0.59028,3388.9,3388.2,0.5904]
[1754181755705,0.59028,3388.9,3388.1,0.59042]
[1754181756008,3.2078,3389.1,3388.8,3.8856]
[1754181756210,0.59027,3389.0,3388.1,3.8856]
[1754181756795,0.59027,3389.0,3388.2,0.59041]
[1754181757301,3.79813,3388.7,3388.1,1.5646]
[1754181757510,0.59033,3388.7,3388.0,0.59044]
[1754181757704,0.59038,3388.4,3387.6,7.0934]
[1754181758009,3.2078,3388.7,3387.9,0.59045]
[1754181758608,4.58047,3388.5,3387.6,7.0934]
[1754181758806,1.4292,3387.9,3387.1,3.2078]
[1754181759111,3.2078,3388.1,3387.2,3.8856]
[1754181759412,3.79823,3388.1,3387.3,0.59056]
[1754181759605,3.79823,3388.1,3387.2,3.8856]
[1754181759606,3.2078,3388.1,3387.5,0.59053]
[1754181759807,3.2078,3388.1,3387.2,3.8856]
[1754181760017,3.9901,3388.2,3387.8,1.5646]
[1754181760310,3.9901,3389.0,3388.2,3.8856]
[1754181760810,2.3351,3388.9,3388.4,0.59037]
[1754181761011,2.5609,3388.8,3388.4,3.8856]
[1754181761213,3.9901,3388.8,3388.5,0.59036]
[1754181761510,3.9901,3388.8,3386.8,1.47662]
[1754181761511,2.3351,3388.5,3387.0,3.2078]
[1754181761701,3.2078,3388.6,3386.9,2.321]
[1754181761702,2.01964,3388.1,3387.4,0.59054]
[1754181761902,0.59048,3387.9,3386.9,3.8856]
[1754181762300,1.655,3387.5,3386.9,2.321]
[1754181762501,0.59071,3386.5,3385.6,0.9587]
[1754181762711,0.59087,3385.6,3384.8,0.591]
[1754181763006,4.58093,3385.8,3384.9,1.65451122]
[1754181763214,4.58093,3385.8,3384.9,1.06353122]
[1754181763411,3.2078,3385.6,3384.9,1.06353122]
[1754181763608,3.2078,3385.6,3385.3,3.8856]
[1754181763809,3.9901,3385.6,3385.0,0.59097]
[1754181764009,3.9901,3385.6,3385.1,4.1665]
[1754181764214,3.9901,3385.6,3385.2,2.9269]
[1754181764409,3.2078,3386.0,3385.4,1.5646]
[1754181764709,0.9059,3385.9,3384.9,2.62813122]
[1754181764911,3.0842,3386.0,3385.1,3.2078]
[1754181765112,4.70443,3386.4,3385.5,2.9269]
[1754181765314,4.70443,3386.4,3385.6,0.9587]
[1754181765511,3.2078,3386.4,3385.6,0.9587]
[1754181765718,3.79846,3386.8,3386.1,0.59076]
[1754181766007,3.2078,3386.8,3386.3,0.59072]
[1754181766209,0.59067,3386.7,3386.4,3.8856]
[1754181766517,3.2078,3386.8,3386.6,1.5646]
[1754181766706,3.2078,3387.2,3386.8,3.8856]
[1754181766909,1.655,3387.5,3387.3,2.9269]
[1754181767107,0.9059,3387.9,3387.3,3.8856]
[1754181767413,3.9901,3387.7,3387.1,0.5906]
[1754181767712,0.59051,3387.6,3386.8,3.79845]
[1754181768114,7.1979,3387.7,3387.1,0.59058]
[1754181768115,3.9901,3387.7,3387.1,0.59058]
[1754181768308,3.2078,3388.1,3387.4,2.321]
[1754181768509,3.2078,3388.1,3387.4,2.91153]
[1754181768705,0.59044,3388.0,3387.4,2.91153]
[1754181768910,3.2078,3388.1,3387.4,2.321]
[1754181769111,3.2078,3388.1,3387.6,0.59051]
[1754181769313,2.3351,3388.5,3387.8,0.59046]
[1754181769522,0.80534405,3388.4,3388.0,0.59043]
[1754181769712,2.3351,3388.5,3388.2,2.9269]
[1754181770021,3.9901,3388.5,3388.1,0.59041]
[1754181770222,0.80593985,3388.4,3387.7,4.4761]
[1754181770522,3.2078,3388.6,3388.2,2.321]
[1754181770823,0.8059797,3388.5,3388.4,3.51727]
[1754181771012,0.8059797,3388.5,3388.4,4.47597]
[1754181771413,3.2078,3388.6,3388.4,4.47597]
[1754181771713,3.2078,3389.1,3388.6,0.59034]
[1754181771914,0.80679037,3389.0,3388.7,0.9587]
[1754181772109,0.80679037,3388.9,3388.7,3.51722]
[1754181772315,0.80679037,3388.8,3388.5,0.59035]
[1754181772516,3.9901,3389.0,3388.7,0.59031]
[1754181772717,0.8078077,3388.9,3388.6,0.59034]
[1754181772916,3.2078,3389.1,3388.7,2.91131]
[1754181773217,0.80882338,3389.0,3388.9,3.8856]
[1754181773412,8.82675178,3389.5,3389.2,0.59022]
[1754181773413,3.2078,3389.5,3389.2,0.59022]
[1754181773619,1.03865178,3390.2,3389.3,2.321]
[1754181773918,4.24645178,3390.4,3390.2,4.47566]
[1754181774119,1.84769797,3390.3,3390.2,4.47566]
[1754181774311,0.80904619,3390.3,3390.2,4.47566]
[1754181775213,1.84769797,3390.3,3390.2,4.47566]
[1754181775410,1.84769797,3390.3,3390.1,4.47567]
[1754181775612,4.24645178,3390.4,3390.3,3.8856]
[1754181775814,4.01788506,3390.4,3389.9,0.59011]
[1754181776016,0.81008506,3390.3,3390.2,3.8856]
[1754181776211,3.2078,3390.4,3390.2,3.8856]
[1754181776416,0.81082329,3390.3,3390.2,3.8856]
[1754181776918,0.81082329,3390.3,3389.7,3.8856]
[1754181777121,1.0460502,3390.6,3389.4,1.47548]
[1754181777122,0.81077155,3390.2,3390.1,0.59008]
[1754181777422,0.9059,3390.4,3389.8,1.5646]
[1754181777718,3.9901,3390.1,3389.7,0.59014]
[1754181777919,3.9901,3390.1,3389.6,3.2078]
[1754181777920,0.9059,3389.9,3389.4,1.3623]
[1754181778226,3.2078,3390.8,3390.4,0.59002]
[1754181778426,4.027,3390.7,3390.1,4.52358]
[1754181778625,4.027,3390.7,3390.1,3.9335]
[1754181778823,0.59008,3390.2,3389.6,0.59016]
[1754181779028,4.027,3389.7,3389.4,3.2078]
[1754181779226,3.0934,3389.5,3389.2,0.59023]
[1754181779424,0.59016,3389.7,3389.1,0.59025]
[1754181779618,0.81242423,3389.6,3389.3,0.59021]
[1754181779929,0.81236243,3389.5,3389.4,3.9335]
[1754181780128,3.23220268,3389.5,3388.9,1.5039]
[1754181780420,2.419,3389.1,3388.5,3.2078]
[1754181780622,6.3012,3389.6,3388.5,3.2078]
[1754181780820,3.90665914,3389.5,3389.2,0.59023]
[1754181781122,3.2078,3389.6,3388.6,3.9335]
[1754181781434,1.0460502,3390.3,3389.9,0.59012]
[1754181781628,0.81371948,3390.2,3390.0,0.5901]
[1754181781933,3.2078,3391.3,3390.9,0.58995]
[1754181782123,3.2078,3391.3,3390.9,4.52345]
[1754181782423,4.027,3390.9,3390.6,0.58999]
[1754181782628,3.2078,3391.3,3390.9,1.5039]
[1754181782816,3.2078,3391.3,3390.9,3.9335]
[1754181783217,2.64281569,3391.4,3390.9,3.9335]
[1754181783618,0.22381569,3391.4,3390.9,3.9335]
[1754181783929,5.69e-06,3391.4,3391.3,4.52338]
[1754181784130,3.2078,3392.1,3391.8,0.58978]
[1754181784434,3.2078,3392.1,3391.8,0.58979]
[1754181784732,3.2078,3392.1,3392.0,0.58975]
[1754181784930,7.2348,3392.5,3392.3,0.5897]
[1754181785118,1.56863013,3393.3,3392.4,7.1413]
[1754181785322,0.9336,3393.6,3392.4,7.1413]
[1754181785323,0.80669043,3393.0,3392.9,2.4296]
[1754181785518,0.9336,3393.6,3392.9,3.9335]
[1754181785724,0.80575753,3393.5,3393.3,0.58953]
[1754181785922,4.2078,3394.0,3393.4,0.58951]
[1754181786128,4.2078,3394.0,3393.7,4.52296]
[1754181786318,4.2078,3394.0,3393.6,3.2078]
[1754181786319,4.2078,3394.0,3393.8,2.09333]
[1754181786523,4.2078,3394.0,3393.9,3.9335]
[1754181786919,1.0,3394.0,3393.9,3.9335]
[1754181787721,3.2078,3395.2,3394.0,3.9335]
[1754181787924,3.2078,3395.2,3394.4,3.2078]
[1754181788132,3.2078,3395.2,3394.5,0.58931]
[1754181788431,0.58922,3395.1,3394.3,0.58935]
[1754181788727,0.58927,3394.8,3394.2,3.2078]
[1754181788930,3.2078,3395.2,3394.5,0.58931]
[1754181789230,1.608,3393.9,3393.2,6.198]
[1754181789421,2.419,3394.1,3393.2,6.198]
[1754181789617,3.2078,3394.3,3393.6,3.2078]
[1754181789830,3.2078,3394.3,3393.3,2.4472]
[1754181790020,0.58943,3393.9,3393.3,2.4472]
[1754181790226,0.5895,3393.5,3393.3,2.4472]
[1754181790436,2.419,3394.2,3393.7,0.58946]
[1754181790731,1.608,3394.6,3394.0,3.79719]
[1754181790925,0.9336,3394.3,3393.7,3.9335]
[1754181791124,3.2078,3394.8,3393.6,3.2078]
[1754181791327,4.027,3393.9,3393.6,0.58947]
[1754181791534,7.82414,3394.4,3393.6,0.58947]
[1754181791721,3.2078,3394.8,3394.0,0.9433]
[1754181791927,0.58929,3394.7,3394.1,3.2078]
[1754181792224,2.419,3394.1,3393.3,3.2078]
[1754181792425,1.4854,3393.7,3392.7,3.2078]
[1754181792624,1.608,3393.5,3392.7,3.2078]
[1754181792821,1.4854,3393.4,3393.1,3.2078]
[1754181793029,0.58951,3393.4,3392.8,0.58961]
[1754181793328,4.027,3393.0,3392.2,3.2078]
[1754181793536,4.027,3392.4,3391.8,3.2078]
[1754181793735,4.027,3392.7,3390.9,4.26944939]
[1754181793924,3.2078,3392.4,3390.9,8.17842498]
[1754181794128,4.027,3393.1,3392.3,3.79749]
[1754181794327,3.2078,3393.6,3393.2,0.58954]
[1754181794525,3.2078,3394.2,3393.4,3.2078]
[1754181794828,1.0460502,3395.3,3392.3,3.90897559]
[1754181794829,3.68279,3394.1,3393.2,3.2078]
[1754181795136,4.027,3394.1,3393.5,0.58949]
[1754181795431,4.027,3394.1,3393.8,0.58943]
[1754181795630,3.2078,3394.5,3394.2,2.4296]
[1754181795834,0.9336,3394.7,3394.4,2.09323]
[1754181796030,3.2078,3394.9,3394.5,3.9335]
[1754181796530,3.2078,3394.9,3394.6,0.5893]
[1754181796735,0.24240325,3396.1,3395.1,4.52271]
[1754181796736,3.2078,3395.5,3395.1,4.52271]
[1754181796929,3.2078,3395.5,3395.1,3.9335]
[1754181797333,3.2078,3395.5,3395.2,0.5892]